Workbook

Sheet Sheet1
B2: N4 Lifeskills - Area 2 Created by Mr.Lafferty@mathsrevision.com
B7: Q1. | D7: Calculate the area of the basic shapes below.
L10: =ROUND(RAND()*(9-4)+4,0) -> 7 | N10: cm | AK10: =ROUND(RAND()*(15-6)+6,0) -> 10 | AM10: cm
AZ11: =ROUND(F13*L10,1) -> 144.9
F13: =ROUND(RAND()*(30-18)+18,1) -> 20.7 | I13: cm | U13: =ROUND(RAND()*(15-6)+6,0) -> 12 | W13: cm | AG13: =ROUND(RAND()*(15-6)+6,1) -> 11 | AI13: cm | AZ13: =ROUND(U13*U13,1) -> 144
AZ15: =ROUND(AG13*AK10*0.5,1) -> 55
C16: Answer to 1 decimal place
I18: cm2 | X18: cm2 | AK18: cm2
B21: Q2. | D21: Calculate the are of the rhombus.
J25: Answer to 1 decimal place | W25: m2 | AM25: =ROUND(RAND()*(15-6)+6,1) -> 6.9 | AO25: m | AZ25: =ROUND(0.5*AM25*AH29,1) -> 13.8
AH29: =ROUND(RAND()*(9-4)+4,0) -> 4 | AJ29: m
B32: Q3. | D32: Calculate the area of the parallelogram.
I36: Answer to 1 decimal place | W36: m2 | AM36: =ROUND(RAND()*(15-6)+6,1) -> 8 | AO36: m | AZ36: =ROUND(AG40*AM36,1) -> 72
AG40: =ROUND(RAND()*(9-4)+4,0) -> 9 | AI40: m
B43: Q4. | D43: Calculate the area of the composite shape.
AG44: =ROUND(AH50*0.7,0) -> 13 | AI44: cm
C47: Answer to 1 decimal place | Q47: cm2 | AO47: =ROUND((AH50-AG44)+ROUND(RAND()*(3-1)+1,0),0) -> 7 | AQ47: cm | AZ47: =(AG44*AO47)+0.5*(AH50-AG44)*AO47 -> 108.5
AH50: =ROUND(RAND()*(20-(14))+(14),0) -> 18 | AJ50: cm
B55: Q5. Calculate the area and perimeter of the circle to 2 decimal places.
L57: Take π = 3.14
I59: Area | Q59: cm2 | AZ59: =ROUND(3.14*(AM60/2)*(AM60/2),2) -> 63.59
AM60: =ROUND(RAND()*(12-(9))+(9),0) -> 9 | AO60: cm
I62: Perimeter | Q62: cm | AZ62: =ROUND(3.14*AM60,2) -> 28.26
AG66: =ROUND(0.48*AG76,1) -> 4.3 | AI66: m
B67: Q6. | D67: Calculate the area of the arrow.
AM70: =ROUND(RAND()*(30-(20))+(20),0) -> 23 | AO70: m
C71: Answer to 1 decimal place | Q71: m2 | AZ71: =ROUND(AG66*(AM70-AB73)+(0.5*AG76*AB73),1) -> 100
AB73: =ROUND(0.23*AM70,1) -> 5.3 | AD73: m
AG76: =ROUND(RAND()*(12-(8))+(8),0) -> 9 | AI76: m
AG79: =ROUND(RAND()*(12-(8))+(8),0) -> 12 | AI79: m
B81: Q7. | D81: Calculate the area of the composite shape.
C85: Answer to 1 decimal place | Q85: m2 | Y85: =ROUND(RAND()*(30-(20))+(20),0) -> 24 | AA85: m | AL85: =ROUND(Y85*0.85,1) -> 20.4 | AN85: m | AZ85: =ROUND((AG91*AL85)+(AG79*(Y85-AL85)),1) -> 130.9
AG91: =ROUND(RAND()*(5-(2))+(2),1) -> 4.3 | AI91: m
AF94: =ROUND(RAND()*(30-(20))+(20),0) -> 29 | AH94: m
B95: Q8. | D95: Calculate the area of the blue shaded part.
V98: =ROUND(AF94*0.46,1) -> 13.3 | X98: m | AP98: =ROUND(V98*0.73,1) -> 9.7 | AR98: m
C99: Answer to 1 decimal place | Q99: m2 | AZ99: =ROUND((AF94*V98)-(AD102*AP98),1) -> 273.2
AD102: =ROUND(AF94*0.4,1) -> 11.6 | AF102: m

Sheet Sheet3
